Workbook

Sheet Οδηγός
G1: ΟΔΗΓΌΣ | H1: ΕΣΟΔΑ
B2: ΠΡΟΣΩΠΙΚΗ ΤΑΜΕΙΑΚΗ ΡΟΗ
B3: Αυτό το βιβλίο εργασίας έχει φύλλα εργασίας ετήσια, μηνιαία και ημερήσια ταμειακής ροής. Επιλέξτε τον τύπο ταμειακής ροής που λειτουργεί καλύτερα για εσάς ή χρησιμοποιήστε τους όλους για να αποκτήσετε μια εικόνα για την προσωπικη ταμειακη ροη.
B5: Ετήσια ταμειακή ροή | D5: Μηνιαία ταμειακή ροή | F5: Ημερήσια ταμειακή ροή
B6: Καταχωρήστε ένα ποσό ετήσιας ταμειακής ροής σε διάφορες περιοχές. Δείτε την μηνιαία κατανομή και τον τρόπο σύγκρισης όλων και, κυρίως, ποιο είναι το κέρδος σας τόσο σε ετήσια όσο και σε μηνιαία βάση. | D6: Καταχωρήστε τη μηνιαία ταμειακή ροή που έχετε κάθε μήνα ή υπολογίστε τους υπόλοιπους μήνες για να δείτε την προβλεπόμενη ταμειακή ροή για κάθε μήνα του έτους. | F6: Καταχωρήστε ένα εκτιμώμενο ποσό ταμειακής ροής για κάθε ημέρα και εξετάστε τα εκτιμώμενα μηνιαία και ετήσια σύνολα. Χρησιμοποιήστε το για να πάρετε μια εικόνα των καθημερινών σας συνηθειών όσον αφορά τις δαπάνες κατά τη διάρκεια ενός μήνα ή ενός έτους.

Sheet Ετήσια ταμειακή ροή
B1: ΠΡΟΣΩΠΙΚΗ ΤΑΜΕΙΑΚΗ ΡΟΗ | G1: ΟΔΗΓΌΣ | H1: ΕΤΗΣΙΑ ΤΑΜΕΙΑΚΗ ΡΟΗ | J1: ΜΗΝΙΑΙΑ ΤΑΜΕΙΑΚΗ ΡΟΗ
B2: Συνολικές ταμειακές ροές μέχρι σήμερα: | D2: =ΕτήσιαΤαμειακήΡοήΜέχριΣήμερα -> 39,750.00 € | G2: Αυτή είναι μια ετήσια εκτίμηση. Χρησιμοποιήστε αυτό το φύλλο εργασίας αν θέλετε να δείτε τα ετήσια ποσά με εκτιμώμενες μηνιαίες τιμές. Χρησιμοποιήστε άλλα φύλλα εργασίας για να προσθέσετε ημερήσια στοιχεία.
B3: ΣΥΝΟΨΗ ΕΣΟΔΩΝ | F3: ΣΥΝΟΨΗ ΕΞΟΔΩΝ | J3: ΣΥΝΟΨΗ ΔΙΑΚΡΙΤΙΚΩΝ ΔΑΠΑΝΩΝ | N3: ΣΥΝΟΨΗ ΑΠΟΤΑΜΙΕΥΣΕΩΝ
B4: Ετήσιο σύνολο: | C4: =Έσοδα!C10 -> 125,000.00 € | F4: Ετήσιο σύνολο: | G4: =Έξοδα[[#Totals],[Ετήσια ]] -> 49,000.00 € | J4: Ετήσιο σύνολο: | K4: =Διακριτικά[[#Totals],[Ετήσια ]] -> 13,250.00 € | N4: Ετήσιο σύνολο: | O4: =Αποταμιεύσεις[[#Totals],[Ετήσια ]] -> 23,000.00 €
B5: Σε αυτό το κελί υπάρχει ένα γράφημα πίτας που εμφανίζει έσοδα από διάφορες πηγές. | F5: Σε αυτό το κελί υπάρχει ένα γράφημα πίτας που δείχνει τα έξοδα που πραγματοποιήθηκαν. | J5: Το γράφημα πίτας που δείχνει τις διακριτικές δαπάνες βρίσκεται σε αυτό το κελί. | N5: Σε αυτό το κελί βρίσκεται ένα γράφημα πίτας που απεικονίζει τις αποταμιεύσεις και τις επενδύσεις.
B6: Μηνιαίο σύνολο: | C6: =Έσοδα!D10 -> 10,416.67 € | F6: Μηνιαίο σύνολο: | G6: =Έξοδα[[#Totals],[Μηνιαία ]] -> 4,083.33 € | J6: Μηνιαίο σύνολο: | K6: =Διακριτικά[[#Totals],[Μηνιαία ]] -> 1,104.17 € | N6: Μηνιαίο σύνολο: | O6: =Αποταμιεύσεις!D9 -> 1,916.67 €

Sheet Μηνιαία ταμειακή ροή
B1: ΠΡΟΣΩΠΙΚΗ ΤΑΜΕΙΑΚΗ ΡΟΗ | H1: ΟΔΗΓΌΣ | I1: ΕΤΗΣΙΑ ΤΑΜΕΙΑΚΗ ΡΟΗ | J1: ΜΗΝΙΑΊΑ ΤΑΜΕΙΑΚΉ ΡΟΉ | K1: ΗΜΕΡΉΣΙΑ ΣΎΝΟΨΗ
B2: Συνολική μηνιαία ταμειακή ροή: | D2: =ΜηνιαίαΤαμειακήΡοήΜέχριΣήμερα -> 18,380.00 € | F2: ΣΗΜΕΙΩΣΗ: Για τα ημερήσια στοιχεία, υπολογίστε το μηνιαίο ποσό/αξία και τοποθετήστε την αξία στην κατάλληλη στήλη μήνα.
B3: Τύπος | C3: Περιγραφή | D3: Ιαν | E3: Φεβ | F3: Μάρ | G3: Απρ | H3: Μάιος | I3: Ιούν | J3: Ιούλ | K3: Αύγ | L3: Σεπ | M3: Οκτ | N3: Νοέμ | O3: Δεκ | P3: Άθροισμα
B4: Έσοδα | C4: Μισθός | D4: 7,500.00 € | E4: 7,500.00 € | F4: 7,500.00 € | G4: 7,500.00 € | H4: 7,500.00 € | I4: 7,500.00 € | P4: =SUM(Μηνιαία[[#This Row],[Ιαν]:[Δεκ]]) -> 45,000.00 €
B5: Έσοδα | C5: Προμήθειες/μπόνους | D5: 400.00 € | E5: 400.00 € | F5: 500.00 € | G5: 200.00 € | H5: 0.00 € | I5: 600.00 € | P5: =SUM(Μηνιαία[[#This Row],[Ιαν]:[Δεκ]]) -> 2,100.00 €
B6: Έσοδα | C6: Άλλα 1 | D6: 2,500.00 € | E6: 2,500.00 € | F6: 2,500.00 € | G6: 2,500.00 € | H6: 2,500.00 € | I6: 2,500.00 € | P6: =SUM(Μηνιαία[[#This Row],[Ιαν]:[Δεκ]]) -> 15,000.00 €
B7: Έσοδα | C7: Άλλα 2 | D7: 0.00 € | E7: 0.00 € | F7: 0.00 € | G7: 0.00 € | H7: 0.00 € | I7: 0.00 € | P7: =SUM(Μηνιαία[[#This Row],[Ιαν]:[Δεκ]]) -> 0.00 €
B8: Έσοδα | C8: Άλλα 3 | D8: 0.00 € | E8: 0.00 € | F8: 0.00 € | G8: 0.00 € | H8: 0.00 € | I8: 0.00 € | P8: =SUM(Μηνιαία[[#This Row],[Ιαν]:[Δεκ]]) -> 0.00 €
B9: Έσοδα | C9: Άλλα 4 | D9: 0.00 € | E9: 0.00 € | F9: 0.00 € | G9: 0.00 € | H9: 0.00 € | I9: 0.00 € | P9: =SUM(Μηνιαία[[#This Row],[Ιαν]:[Δεκ]]) -> 0.00 €
B10: Έξοδα | C10: Ιατροφαρμακευτική περίθαλψη | D10: 1,250.00 € | E10: 1,250.00 € | F10: 1,250.00 € | G10: 1,250.00 € | H10: 1,250.00 € | I10: 1,250.00 € | P10: =SUM(Μηνιαία[[#This Row],[Ιαν]:[Δεκ]]) -> 7,500.00 €
B11: Έξοδα | C11: Φόρος εισοδήματος | D11: 208.33 € | E11: 208.33 € | F11: 208.33 € | G11: 208.33 € | H11: 208.33 € | I11: 208.33 € | P11: =SUM(Μηνιαία[[#This Row],[Ιαν]:[Δεκ]]) -> 1,250.00 €
B12: Έξοδα | C12: Φόρος/Τέλη οχημάτων | D12: 16.67 € | E12: 16.67 € | F12: 16.67 € | G12: 16.67 € | H12: 16.67 € | I12: 16.67 € | P12: =SUM(Μηνιαία[[#This Row],[Ιαν]:[Δεκ]]) -> 100.00 €
B13: Έξοδα | C13: Δόσεις οχήματος | D13: 333.33 € | E13: 333.33 € | F13: 333.33 € | G13: 333.33 € | H13: 333.33 € | I13: 333.33 € | P13: =SUM(Μηνιαία[[#This Row],[Ιαν]:[Δεκ]]) -> 2,000.00 €
B14: Έξοδα | C14: Στεγαστικό/Ενοίκιο | D14: 1,250.00 € | E14: 1,250.00 € | F14: 1,250.00 € | G14: 1,250.00 € | H14: 1,250.00 € | I14: 1,250.00 € | P14: =SUM(Μηνιαία[[#This Row],[Ιαν]:[Δεκ]]) -> 7,500.00 €
B15: Έξοδα | C15: Ασφάλεια | D15: 25.00 € | E15: 25.00 € | F15: 25.00 € | G15: 25.00 € | H15: 25.00 € | I15: 25.00 € | P15: =SUM(Μηνιαία[[#This Row],[Ιαν]:[Δεκ]]) -> 150.00 €
B16: Έξοδα | C16: Ηλεκτρικό | D16: 100.00 € | E16: 100.00 € | F16: 100.00 € | G16: 100.00 € | H16: 100.00 € | I16: 100.00 € | P16: =SUM(Μηνιαία[[#This Row],[Ιαν]:[Δεκ]]) -> 600.00 €
B17: Έξοδα | C17: Αέριο | D17: 50.00 € | E17: 50.00 € | F17: 50.00 € | G17: 50.00 € | H17: 50.00 € | I17: 50.00 € | P17: =SUM(Μηνιαία[[#This Row],[Ιαν]:[Δεκ]]) -> 300.00 €
B18: Έξοδα | C18: Νερό | D18: 50.00 € | E18: 50.00 € | F18: 50.00 € | G18: 50.00 € | H18: 50.00 € | I18: 50.00 € | P18: =SUM(Μηνιαία[[#This Row],[Ιαν]:[Δεκ]]) -> 300.00 €
B19: Έξοδα | C19: Αποχέτευση | D19: 25.00 € | E19: 25.00 € | F19: 25.00 € | G19: 25.00 € | H19: 25.00 € | I19: 25.00 € | P19: =SUM(Μηνιαία[[#This Row],[Ιαν]:[Δεκ]]) -> 150.00 €
B20: Έξοδα | C20: Απορρίμματα | D20: 12.50 € | E20: 12.50 € | F20: 12.50 € | G20: 12.50 € | H20: 12.50 € | I20: 12.50 € | P20: =SUM(Μηνιαία[[#This Row],[Ιαν]:[Δεκ]]) -> 75.00 €
B21: Έξοδα | C21: Τηλέφωνο | D21: 50.00 € | E21: 50.00 € | F21: 50.00 € | G21: 50.00 € | H21: 50.00 € | I21: 50.00 € | P21: =SUM(Μηνιαία[[#This Row],[Ιαν]:[Δεκ]]) -> 300.00 €
B22: Έξοδα | C22: Internet | D22: 50.00 € | E22: 50.00 € | F22: 50.00 € | G22: 50.00 € | H22: 50.00 € | I22: 50.00 € | P22: =SUM(Μηνιαία[[#This Row],[Ιαν]:[Δεκ]]) -> 300.00 €
B23: Έξοδα | C23: Προγράμματα ασφάλισης ζωής/αναπηρίας | D23: 125.00 € | E23: 125.00 € | F23: 125.00 € | G23: 125.00 € | H23: 125.00 € | I23: 125.00 € | P23: =SUM(Μηνιαία[[#This Row],[Ιαν]:[Δεκ]]) -> 750.00 €
B24: Έξοδα | C24: Φαγητό | D24: 400.00 € | E24: 500.00 € | F24: 450.00 € | G24: 400.00 € | H24: 450.00 € | I24: 425.00 € | P24: =SUM(Μηνιαία[[#This Row],[Ιαν]:[Δεκ]]) -> 2,625.00 €
B25: Έξοδα | C25: Ρούχα | D25: 50.00 € | E25: 75.00 € | F25: 100.00 € | G25: 75.00 € | H25: 125.00 € | I25: 75.00 € | P25: =SUM(Μηνιαία[[#This Row],[Ιαν]:[Δεκ]]) -> 500.00 €
B26: Έξοδα | C26: Ιατρικά/Οδοντιατρικά/ Φάρμακα | D26: 50.00 € | E26: 10.00 € | F26: 25.00 € | G26: 25.00 € | H26: 20.00 € | I26: 70.00 € | P26: =SUM(Μηνιαία[[#This Row],[Ιαν]:[Δεκ]]) -> 200.00 €
B27: Έξοδα | C27: Λεωφορείο | D27: 30.00 € | E27: 30.00 € | F27: 30.00 € | G27: 20.00 € | H27: 30.00 € | I27: 30.00 € | P27: =SUM(Μηνιαία[[#This Row],[Ιαν]:[Δεκ]]) -> 170.00 €
B28: Έξοδα | C28: Άλλα 2 | D28: 0.00 € | E28: 0.00 € | F28: 0.00 € | G28: 0.00 € | H28: 0.00 € | I28: 0.00 € | P28: =SUM(Μηνιαία[[#This Row],[Ιαν]:[Δεκ]]) -> 0.00 €
B29: Έξοδα | C29: Άλλα 3 | D29: 0.00 € | E29: 0.00 € | F29: 0.00 € | G29: 0.00 € | H29: 0.00 € | I29: 0.00 € | P29: =SUM(Μηνιαία[[#This Row],[Ιαν]:[Δεκ]]) -> 0.00 €
B30: Έξοδα | C30: Άλλα 4 | D30: 0.00 € | E30: 0.00 € | F30: 0.00 € | G30: 0.00 € | H30: 0.00 € | I30: 0.00 € | P30: =SUM(Μηνιαία[[#This Row],[Ιαν]:[Δεκ]]) -> 0.00 €
B31: Διακριτικά | C31: Εστιατόρια | D31: 50.00 € | E31: 150.00 € | F31: 100.00 € | G31: 50.00 € | H31: 150.00 € | I31: 100.00 € | P31: =SUM(Μηνιαία[[#This Row],[Ιαν]:[Δεκ]]) -> 600.00 €
B32: Διακριτικά | C32: Δώρα | D32: 25.00 € | E32: 75.00 € | F32: 50.00 € | G32: 25.00 € | H32: 75.00 € | I32: 50.00 € | P32: =SUM(Μηνιαία[[#This Row],[Ιαν]:[Δεκ]]) -> 300.00 €
B33: Διακριτικά | C33: Ταξίδια | D33: 0.00 € | E33: 0.00 € | F33: 1,000.00 € | G33: 0.00 € | H33: 0.00 € | I33: 1,000.00 € | P33: =SUM(Μηνιαία[[#This Row],[Ιαν]:[Δεκ]]) -> 2,000.00 €
B34: Διακριτικά | C34: Διασκέδαση | D34: 50.00 € | E34: 150.00 € | F34: 100.00 € | G34: 50.00 € | H34: 150.00 € | I34: 100.00 € | P34: =SUM(Μηνιαία[[#This Row],[Ιαν]:[Δεκ]]) -> 600.00 €
B35: Διακριτικά | C35: Προσωπική φροντίδα | D35: 15.00 € | E35: 25.00 € | F35: 35.00 € | G35: 15.00 € | H35: 25.00 € | I35: 35.00 € | P35: =SUM(Μηνιαία[[#This Row],[Ιαν]:[Δεκ]]) -> 150.00 €
B36: Διακριτικά | C36: Αγορές | D36: 100.00 € | E36: 200.00 € | F36: 150.00 € | G36: 175.00 € | H36: 150.00 € | I36: 175.00 € | P36: =SUM(Μηνιαία[[#This Row],[Ιαν]:[Δεκ]]) -> 950.00 €
B37: Διακριτικά | C37: Φιλανθρωπικές οργανώσεις | D37: 50.00 € | E37: 50.00 € | F37: 50.00 € | G37: 50.00 € | H37: 50.00 € | I37: 50.00 € | P37: =SUM(Μηνιαία[[#This Row],[Ιαν]:[Δεκ]]) -> 300.00 €
B38: Διακριτικά | C38: Συμμετοχές σε λέσχες/συλλόγους | D38: 25.00 € | E38: 25.00 € | F38: 25.00 € | G38: 25.00 € | H38: 25.00 € | I38: 25.00 € | P38: =SUM(Μηνιαία[[#This Row],[Ιαν]:[Δεκ]]) -> 150.00 €
B39: Διακριτικά | C39: Εργασίες ανακαίνισης σπιτιού | D39: 400.00 € | E39: 400.00 € | F39: 400.00 € | G39: 400.00 € | H39: 400.00 € | I39: 400.00 € | P39: =SUM(Μηνιαία[[#This Row],[Ιαν]:[Δεκ]]) -> 2,400.00 €
B40: Διακριτικά | C40: Άλλα 1 | D40: 0.00 € | E40: 0.00 € | F40: 0.00 € | G40: 0.00 € | H40: 0.00 € | I40: 0.00 € | P40: =SUM(Μηνιαία[[#This Row],[Ιαν]:[Δεκ]]) -> 0.00 €
B41: Διακριτικά | C41: Άλλα 2 | D41: 0.00 € | E41: 0.00 € | F41: 0.00 € | G41: 0.00 € | H41: 0.00 € | I41: 0.00 € | P41: =SUM(Μηνιαία[[#This Row],[Ιαν]:[Δεκ]]) -> 0.00 €
B42: Αποταμιεύσεις | C42: Ταμειακά αποθέματα | D42: 416.67 € | E42: 416.67 € | F42: 416.67 € | G42: 416.67 € | H42: 416.67 € | I42: 416.67 € | P42: =SUM(Μηνιαία[[#This Row],[Ιαν]:[Δεκ]]) -> 2,500.00 €
B43: Αποταμιεύσεις | C43: Συνταξιοδοτικό κ.λπ. | D43: 1,000.00 € | E43: 1,000.00 € | F43: 1,000.00 € | G43: 1,000.00 € | H43: 1,000.00 € | I43: 1,000.00 € | P43: =SUM(Μηνιαία[[#This Row],[Ιαν]:[Δεκ]]) -> 6,000.00 €
B44: Αποταμιεύσεις | C44: Λογαριασμός αποταμιεύσεων/επενδύσεων | D44: 500.00 € | E44: 500.00 € | F44: 500.00 € | G44: 500.00 € | H44: 500.00 € | I44: 500.00 € | P44: =SUM(Μηνιαία[[#This Row],[Ιαν]:[Δεκ]]) -> 3,000.00 €
B45: Αποταμιεύσεις | C45: Άλλα 1 | D45: 0.00 € | E45: 0.00 € | F45: 0.00 € | G45: 0.00 € | H45: 0.00 € | I45: 0.00 € | P45: =SUM(Μηνιαία[[#This Row],[Ιαν]:[Δεκ]]) -> 0.00 €
B46: Αποταμιεύσεις | C46: Άλλα 2 | D46: 0.00 € | E46: 0.00 € | F46: 0.00 € | G46: 0.00 € | H46: 0.00 € | I46: 0.00 € | P46: =SUM(Μηνιαία[[#This Row],[Ιαν]:[Δεκ]]) -> 0.00 €
B47: Άθροισμα | D47: =SUMIF(Μηνιαία[Τύπος],"Έσοδα",Μηνιαία[Ιαν])-SUMIF(Μηνιαία[Τύπος],"<>Έσοδα",Μηνιαία[Ιαν]) -> 3,692.50 € | E47: =SUMIF(Μηνιαία[Τύπος],"Έσοδα",Μηνιαία[Φεβ])-SUMIF(Μηνιαία[Τύπος],"<>Έσοδα",Μηνιαία[Φεβ]) -> 3,247.50 € | F47: =SUMIF(Μηνιαία[Τύπος],"Έσοδα",Μηνιαία[Μάρ])-SUMIF(Μηνιαία[Τύπος],"<>Έσοδα",Μηνιαία[Μάρ]) -> 2,522.50 € | G47: =SUMIF(Μηνιαία[Τύπος],"Έσοδα",Μηνιαία[Απρ])-SUMIF(Μηνιαία[Τύπος],"<>Έσοδα",Μηνιαία[Απρ]) -> 3,427.50 € | H47: =SUMIF(Μηνιαία[Τύπος],"Έσοδα",Μηνιαία[Μάιος])-SUMIF(Μηνιαία[Τύπος],"<>Έσοδα",Μηνιαία[Μάιος]) -> 2,887.50 € | I47: =SUMIF(Μηνιαία[Τύπος],"Έσοδα",Μηνιαία[Ιούν])-SUMIF(Μηνιαία[Τύπος],"<>Έσοδα",Μηνιαία[Ιούν]) -> 2,602.50 € | J47: =SUMIF(Μηνιαία[Τύπος],"Έσοδα",Μηνιαία[Ιούλ])-SUMIF(Μηνιαία[Τύπος],"<>Έσοδα",Μηνιαία[Ιούλ]) -> 0.00 € | K47: =SUMIF(Μηνιαία[Τύπος],"Έσοδα",Μηνιαία[Αύγ])-SUMIF(Μηνιαία[Τύπος],"<>Έσοδα",Μηνιαία[Αύγ]) -> 0.00 € | L47: =SUMIF(Μηνιαία[Τύπος],"Έσοδα",Μηνιαία[Σεπ])-SUMIF(Μηνιαία[Τύπος],"<>Έσοδα",Μηνιαία[Σεπ]) -> 0.00 € | M47: =SUMIF(Μηνιαία[Τύπος],"Έσοδα",Μηνιαία[Οκτ])-SUMIF(Μηνιαία[Τύπος],"<>Έσοδα",Μηνιαία[Οκτ]) -> 0.00 € | N47: =SUMIF(Μηνιαία[Τύπος],"Έσοδα",Μηνιαία[Νοέμ])-SUMIF(Μηνιαία[Τύπος],"<>Έσοδα",Μηνιαία[Νοέμ]) -> 0.00 € | O47: =SUMIF(Μηνιαία[Τύπος],"Έσοδα",Μηνιαία[Δεκ])-SUMIF(Μηνιαία[Τύπος],"<>Έσοδα",Μηνιαία[Δεκ]) -> 0.00 € | P47: =SUMIF(Μηνιαία[Τύπος],"Έσοδα",Μηνιαία[Άθροισμα])-SUMIF(Μηνιαία[Τύπος],"<>Έσοδα",Μηνιαία[Άθροισμα]) -> 18,380.00 €

Sheet Ημερήσια σύνοψη
B1: ΠΡΟΣΩΠΙΚΗ ΤΑΜΕΙΑΚΗ ΡΟΗ | F1: ΟΔΗΓΌΣ | G1: ΜΗΝΙΑΙΑ ΤΑΜΕΙΑΚΗ ΡΟΗ | H1: ΗΜΕΡΉΣΙΑ ΣΎΝΟΨΗ | I1: ΕΣΟΔΑ
B2: Συνολικά διαθέσιμα μετρητά: | D2: =ΗμερήσιαΤαμειακήΡοή -> 577.84 € | F2: ΣΗΜΕΙΩΣΗ: Εάν θέλετε να προσθέσετε ημερήσια στοιχεία, υπολογίστε το μηνιαίο ποσό/αξία τους και τοποθετήστε την αξία στην κατάλληλη στήλη μήνα.
B3: ΗΜΕΡΉΣΙΑ ΣΎΝΟΨΗ
B4: ΣΥΝΟΛΑ | C4: Ημερήσια | D4: Μηνιαία | E4: Ετήσια
B5: Έσοδα | C5: =SUMIF(Ημερήσια[Τύπος],$B5,Ημερήσια[Ημερήσια]) -> 342.47 € | D5: =SUMIF(Ημερήσια[Τύπος],$B5,Ημερήσια[Μηνιαία]) -> 10,416.80 € | E5: =SUMIF(Ημερήσια[Τύπος],$B5,Ημερήσια[Ετήσια]) -> 125,001.55 €
B6: Έξοδα | C6: =SUMIF(Ημερήσια[Τύπος],$B6,Ημερήσια[Ημερήσια]) -> 136.06 € | D6: =SUMIF(Ημερήσια[Τύπος],$B6,Ημερήσια[Μηνιαία]) -> 4,138.49 € | E6: =SUMIF(Ημερήσια[Τύπος],$B6,Ημερήσια[Ετήσια]) -> 49,661.90 €
B7: Διακριτικά | C7: =SUMIF(Ημερήσια[Τύπος],$B7,Ημερήσια[Ημερήσια]) -> 36.29 € | D7: =SUMIF(Ημερήσια[Τύπος],$B7,Ημερήσια[Μηνιαία]) -> 1,103.82 € | E7: =SUMIF(Ημερήσια[Τύπος],$B7,Ημερήσια[Ετήσια]) -> 13,245.85 €
B8: Αποταμιεύσεις | C8: =SUMIF(Ημερήσια[Τύπος],$B8,Ημερήσια[Ημερήσια]) -> 63.02 € | D8: =SUMIF(Ημερήσια[Τύπος],$B8,Ημερήσια[Μηνιαία]) -> 1,916.86 € | E8: =SUMIF(Ημερήσια[Τύπος],$B8,Ημερήσια[Ετήσια]) -> 23,002.30 €
B9: Τύπος | C9: Περιγραφή | D9: Ημερήσια | E9: Μηνιαία | F9: Ετήσια
B10: Έσοδα | C10: Μισθός | D10: 246.58 € | E10: =Ημερήσια[[#This Row],[Ετήσια]]/12 -> 7,500.14 € | F10: =Ημερήσια[[#This Row],[Ημερήσια]]*365 -> 90,001.70 €
B11: Έσοδα | C11: Προμήθειες/μπόνους | D11: 13.70 € | E11: =Ημερήσια[[#This Row],[Ετήσια]]/12 -> 416.71 € | F11: =Ημερήσια[[#This Row],[Ημερήσια]]*365 -> 5,000.50 €
B12: Έσοδα | C12: Άλλα 1 | D12: 82.19 € | E12: =Ημερήσια[[#This Row],[Ετήσια]]/12 -> 2,499.95 € | F12: =Ημερήσια[[#This Row],[Ημερήσια]]*365 -> 29,999.35 €
B13: Έσοδα | C13: Άλλα 2 | D13: 0.00 € | E13: =Ημερήσια[[#This Row],[Ετήσια]]/12 -> 0.00 € | F13: =Ημερήσια[[#This Row],[Ημερήσια]]*365 -> 0.00 €
B14: Έσοδα | C14: Άλλα 3 | D14: 0.00 € | E14: =Ημερήσια[[#This Row],[Ετήσια]]/12 -> 0.00 € | F14: =Ημερήσια[[#This Row],[Ημερήσια]]*365 -> 0.00 €
B15: Έσοδα | C15: Άλλα 4 | D15: 0.00 € | E15: =Ημερήσια[[#This Row],[Ετήσια]]/12 -> 0.00 € | F15: =Ημερήσια[[#This Row],[Ημερήσια]]*365 -> 0.00 €
B16: Έξοδα | C16: Ιατροφαρμακευτική περίθαλψη | D16: 41.10 € | E16: =Ημερήσια[[#This Row],[Ετήσια]]/12 -> 1,250.13 € | F16: =Ημερήσια[[#This Row],[Ημερήσια]]*365 -> 15,001.50 €
B17: Έξοδα | C17: Φόρος εισοδήματος | D17: 6.85 € | E17: =Ημερήσια[[#This Row],[Ετήσια]]/12 -> 208.35 € | F17: =Ημερήσια[[#This Row],[Ημερήσια]]*365 -> 2,500.25 €
B18: Έξοδα | C18: Φόρος/Τέλη οχημάτων | D18: 0.55 € | E18: =Ημερήσια[[#This Row],[Ετήσια]]/12 -> 16.73 € | F18: =Ημερήσια[[#This Row],[Ημερήσια]]*365 -> 200.75 €
B19: Έξοδα | C19: Δόσεις οχήματος | D19: 10.96 € | E19: =Ημερήσια[[#This Row],[Ετήσια]]/12 -> 333.37 € | F19: =Ημερήσια[[#This Row],[Ημερήσια]]*365 -> 4,000.40 €
B20: Έξοδα | C20: Στεγαστικό/Ενοίκιο | D20: 41.10 € | E20: =Ημερήσια[[#This Row],[Ετήσια]]/12 -> 1,250.13 € | F20: =Ημερήσια[[#This Row],[Ημερήσια]]*365 -> 15,001.50 €
B21: Έξοδα | C21: Ασφάλεια | D21: 0.68 € | E21: =Ημερήσια[[#This Row],[Ετήσια]]/12 -> 20.68 € | F21: =Ημερήσια[[#This Row],[Ημερήσια]]*365 -> 248.20 €
B22: Έξοδα | C22: Ηλεκτρικό | D22: 3.29 € | E22: =Ημερήσια[[#This Row],[Ετήσια]]/12 -> 100.07 € | F22: =Ημερήσια[[#This Row],[Ημερήσια]]*365 -> 1,200.85 €
B23: Έξοδα | C23: Αέριο | D23: 1.64 € | E23: =Ημερήσια[[#This Row],[Ετήσια]]/12 -> 49.88 € | F23: =Ημερήσια[[#This Row],[Ημερήσια]]*365 -> 598.60 €
B24: Έξοδα | C24: Νερό | D24: 1.64 € | E24: =Ημερήσια[[#This Row],[Ετήσια]]/12 -> 49.88 € | F24: =Ημερήσια[[#This Row],[Ημερήσια]]*365 -> 598.60 €
B25: Έξοδα | C25: Αποχέτευση | D25: 0.82 € | E25: =Ημερήσια[[#This Row],[Ετήσια]]/12 -> 24.94 € | F25: =Ημερήσια[[#This Row],[Ημερήσια]]*365 -> 299.30 €
B26: Έξοδα | C26: Απορρίμματα | D26: 0.41 € | E26: =Ημερήσια[[#This Row],[Ετήσια]]/12 -> 12.47 € | F26: =Ημερήσια[[#This Row],[Ημερήσια]]*365 -> 149.65 €
B27: Έξοδα | C27: Τηλέφωνο | D27: 1.64 € | E27: =Ημερήσια[[#This Row],[Ετήσια]]/12 -> 49.88 € | F27: =Ημερήσια[[#This Row],[Ημερήσια]]*365 -> 598.60 €
B28: Έξοδα | C28: Internet | D28: 1.64 € | E28: =Ημερήσια[[#This Row],[Ετήσια]]/12 -> 49.88 € | F28: =Ημερήσια[[#This Row],[Ημερήσια]]*365 -> 598.60 €
B29: Έξοδα | C29: Προγράμματα ασφάλισης ζωής/αναπηρίας | D29: 4.11 € | E29: =Ημερήσια[[#This Row],[Ετήσια]]/12 -> 125.01 € | F29: =Ημερήσια[[#This Row],[Ημερήσια]]*365 -> 1,500.15 €
B30: Έξοδα | C30: Φαγητό | D30: 13.70 € | E30: =Ημερήσια[[#This Row],[Ετήσια]]/12 -> 416.71 € | F30: =Ημερήσια[[#This Row],[Ημερήσια]]*365 -> 5,000.50 €
B31: Έξοδα | C31: Ρούχα | D31: 3.29 € | E31: =Ημερήσια[[#This Row],[Ετήσια]]/12 -> 100.07 € | F31: =Ημερήσια[[#This Row],[Ημερήσια]]*365 -> 1,200.85 €
B32: Έξοδα | C32: Ιατρικά/Οδοντιατρικά/ Φάρμακα | D32: 1.64 € | E32: =Ημερήσια[[#This Row],[Ετήσια]]/12 -> 49.88 € | F32: =Ημερήσια[[#This Row],[Ημερήσια]]*365 -> 598.60 €
B33: Έξοδα | C33: Λεωφορείο | D33: 1.00 € | E33: =Ημερήσια[[#This Row],[Ετήσια]]/12 -> 30.42 € | F33: =Ημερήσια[[#This Row],[Ημερήσια]]*365 -> 365.00 €
B34: Έξοδα | C34: Άλλα 2 | D34: 0.00 € | E34: =Ημερήσια[[#This Row],[Ετήσια]]/12 -> 0.00 € | F34: =Ημερήσια[[#This Row],[Ημερήσια]]*365 -> 0.00 €
B35: Έξοδα | C35: Άλλα 3 | D35: 0.00 € | E35: =Ημερήσια[[#This Row],[Ετήσια]]/12 -> 0.00 € | F35: =Ημερήσια[[#This Row],[Ημερήσια]]*365 -> 0.00 €
B36: Έξοδα | C36: Άλλα 4 | D36: 0.00 € | E36: =Ημερήσια[[#This Row],[Ετήσια]]/12 -> 0.00 € | F36: =Ημερήσια[[#This Row],[Ημερήσια]]*365 -> 0.00 €
B37: Διακριτικά | C37: Εστιατόρια | D37: 3.29 € | E37: =Ημερήσια[[#This Row],[Ετήσια]]/12 -> 100.07 € | F37: =Ημερήσια[[#This Row],[Ημερήσια]]*365 -> 1,200.85 €
B38: Διακριτικά | C38: Δώρα | D38: 1.64 € | E38: =Ημερήσια[[#This Row],[Ετήσια]]/12 -> 49.88 € | F38: =Ημερήσια[[#This Row],[Ημερήσια]]*365 -> 598.60 €
B39: Διακριτικά | C39: Ταξίδια | D39: 6.16 € | E39: =Ημερήσια[[#This Row],[Ετήσια]]/12 -> 187.37 € | F39: =Ημερήσια[[#This Row],[Ημερήσια]]*365 -> 2,248.40 €
B40: Διακριτικά | C40: Διασκέδαση | D40: 3.29 € | E40: =Ημερήσια[[#This Row],[Ετήσια]]/12 -> 100.07 € | F40: =Ημερήσια[[#This Row],[Ημερήσια]]*365 -> 1,200.85 €
B41: Διακριτικά | C41: Προσωπική φροντίδα | D41: 0.82 € | E41: =Ημερήσια[[#This Row],[Ετήσια]]/12 -> 24.94 € | F41: =Ημερήσια[[#This Row],[Ημερήσια]]*365 -> 299.30 €
B42: Διακριτικά | C42: Αγορές | D42: 5.48 € | E42: =Ημερήσια[[#This Row],[Ετήσια]]/12 -> 166.68 € | F42: =Ημερήσια[[#This Row],[Ημερήσια]]*365 -> 2,000.20 €
B43: Διακριτικά | C43: Φιλανθρωπικές οργανώσεις | D43: 1.64 € | E43: =Ημερήσια[[#This Row],[Ετήσια]]/12 -> 49.88 € | F43: =Ημερήσια[[#This Row],[Ημερήσια]]*365 -> 598.60 €
B44: Διακριτικά | C44: Συμμετοχές σε λέσχες/συλλόγους | D44: 0.82 € | E44: =Ημερήσια[[#This Row],[Ετήσια]]/12 -> 24.94 € | F44: =Ημερήσια[[#This Row],[Ημερήσια]]*365 -> 299.30 €
B45: Διακριτικά | C45: Εργασίες ανακαίνισης σπιτιού | D45: 13.15 € | E45: =Ημερήσια[[#This Row],[Ετήσια]]/12 -> 399.98 € | F45: =Ημερήσια[[#This Row],[Ημερήσια]]*365 -> 4,799.75 €
B46: Διακριτικά | C46: Άλλα 1 | D46: 0.00 € | E46: =Ημερήσια[[#This Row],[Ετήσια]]/12 -> 0.00 € | F46: =Ημερήσια[[#This Row],[Ημερήσια]]*365 -> 0.00 €
B47: Διακριτικά | C47: Άλλα 2 | D47: 0.00 € | E47: =Ημερήσια[[#This Row],[Ετήσια]]/12 -> 0.00 € | F47: =Ημερήσια[[#This Row],[Ημερήσια]]*365 -> 0.00 €
B48: Αποταμιεύσεις | C48: Ταμειακά αποθέματα | D48: 13.70 € | E48: =Ημερήσια[[#This Row],[Ετήσια]]/12 -> 416.71 € | F48: =Ημερήσια[[#This Row],[Ημερήσια]]*365 -> 5,000.50 €
B49: Αποταμιεύσεις | C49: Συνταξιοδοτικό κ.λπ. | D49: 32.88 € | E49: =Ημερήσια[[#This Row],[Ετήσια]]/12 -> 1,000.10 € | F49: =Ημερήσια[[#This Row],[Ημερήσια]]*365 -> 12,001.20 €
B50: Αποταμιεύσεις | C50: Λογαριασμός αποταμιεύσεων/επενδύσεων | D50: 16.44 € | E50: =Ημερήσια[[#This Row],[Ετήσια]]/12 -> 500.05 € | F50: =Ημερήσια[[#This Row],[Ημερήσια]]*365 -> 6,000.60 €
B51: Αποταμιεύσεις | C51: Άλλα 1 | D51: 0.00 € | E51: =Ημερήσια[[#This Row],[Ετήσια]]/12 -> 0.00 € | F51: =Ημερήσια[[#This Row],[Ημερήσια]]*365 -> 0.00 €
B52: Αποταμιεύσεις | C52: Άλλα 2 | D52: 0.00 € | E52: =Ημερήσια[[#This Row],[Ετήσια]]/12 -> 0.00 € | F52: =Ημερήσια[[#This Row],[Ημερήσια]]*365 -> 0.00 €
B53: Άθροισμα | D53: =SUMIF(Ημερήσια[Τύπος],"Έσοδα",Ημερήσια[Ημερήσια])-SUMIF(Ημερήσια[Τύπος],"<>Έσοδα",Ημερήσια[Ημερήσια]) -> 107.10 € | E53: =SUMIF(Ημερήσια[Τύπος],"Έσοδα",Ημερήσια[Μηνιαία])-SUMIF(Ημερήσια[Τύπος],"<>Έσοδα",Ημερήσια[Μηνιαία]) -> 3,257.63 € | F53: =SUMIF(Ημερήσια[Τύπος],"Έσοδα",Ημερήσια[Ετήσια])-SUMIF(Ημερήσια[Τύπος],"<>Έσοδα",Ημερήσια[Ετήσια]) -> 39,091.50 €

Sheet Έσοδα
B1: ΠΡΟΣΩΠΙΚΗ ΤΑΜΕΙΑΚΗ ΡΟΗ | F1: ΟΔΗΓΌΣ | G1: ΗΜΕΡΉΣΙΑ ΣΎΝΟΨΗ | H1: ΕΣΟΔΑ | I1: ΕΞΟΔΑ
B2: Συνολικές ταμειακές ροές μέχρι σήμερα: | D2: =ΕτήσιαΤαμειακήΡοήΜέχριΣήμερα -> 39,750.00 € | F2: Αυτή είναι μια ετήσια εκτίμηση. Χρησιμοποιήστε αυτό το φύλλο εργασίας εάν θέλετε να προβάλετε ετήσια ποσά με εκτιμώμενες μηνιαίες τιμές Εάν θέλετε να προσθέσετε ημερήσια στοιχεία στους Πίνακες, υπολογίστε το μηνιαίο ποσό/αξία τους και τοποθετήστε την αξία στη στήλη Ετήσια.
B3: Έσοδα | C3: Ετήσια | D3: Μηνιαία
B4: Μισθός | C4: 90,000.00 € | D4: =Έσοδα[[#This Row],[Ετήσια ]]/12 -> 7,500.00 €
B5: Προμήθειες/μπόνους | C5: 5,000.00 € | D5: =Έσοδα[[#This Row],[Ετήσια ]]/12 -> 416.67 €
B6: Άλλα 1 | C6: 30,000.00 € | D6: =Έσοδα[[#This Row],[Ετήσια ]]/12 -> 2,500.00 €
B7: Άλλα 2 | D7: =Έσοδα[[#This Row],[Ετήσια ]]/12 -> 0.00 €
B8: Άλλα 3 | D8: =Έσοδα[[#This Row],[Ετήσια ]]/12 -> 0.00 €
B9: Άλλα 4 | D9: =Έσοδα[[#This Row],[Ετήσια ]]/12 -> 0.00 €
B10: Άθροισμα | C10: =SUBTOTAL(109,Έσοδα[[Ετήσια ]]) -> 125,000.00 € | D10: =SUBTOTAL(109,Έσοδα[[Μηνιαία ]]) -> 10,416.67 €

Sheet Έξοδα
B1: ΠΡΟΣΩΠΙΚΗ ΤΑΜΕΙΑΚΗ ΡΟΗ | F1: ΟΔΗΓΌΣ | G1: ΕΣΟΔΑ | H1: ΕΞΟΔΑ | I1: ΔΙΑΚΡΙΤΙΚΆ
B2: Συνολικές ταμειακές ροές μέχρι σήμερα: | D2: =ΕτήσιαΤαμειακήΡοήΜέχριΣήμερα -> 39,750.00 € | F2: Αυτή είναι μια ετήσια εκτίμηση. Χρησιμοποιήστε αυτό το φύλλο εργασίας εάν θέλετε να προβάλετε ετήσια ποσά με εκτιμώμενες μηνιαίες τιμές Εάν θέλετε να προσθέσετε ημερήσια στοιχεία στους Πίνακες, υπολογίστε το μηνιαίο ποσό/αξία τους και τοποθετήστε την αξία στη στήλη Ετήσια.
B3: Έξοδα | C3: Ετήσια | D3: Μηνιαία
B4: Ιατροφαρμακευτική περίθαλψη | C4: 15,000.00 € | D4: =Έξοδα[[#This Row],[Ετήσια ]]/12 -> 1,250.00 €
B5: Φόρος εισοδήματος | C5: 2,500.00 € | D5: =Έξοδα[[#This Row],[Ετήσια ]]/12 -> 208.33 €
B6: Φόρος/Τέλη οχημάτων | C6: 200.00 € | D6: =Έξοδα[[#This Row],[Ετήσια ]]/12 -> 16.67 €
B7: Δόσεις οχήματος | C7: 4,000.00 € | D7: =Έξοδα[[#This Row],[Ετήσια ]]/12 -> 333.33 €
B8: Στεγαστικό/Ενοίκιο | C8: 15,000.00 € | D8: =Έξοδα[[#This Row],[Ετήσια ]]/12 -> 1,250.00 €
B9: Ασφάλεια | C9: 250.00 € | D9: =Έξοδα[[#This Row],[Ετήσια ]]/12 -> 20.83 €
B10: Ηλεκτρικό | C10: 1,200.00 € | D10: =Έξοδα[[#This Row],[Ετήσια ]]/12 -> 100.00 €
B11: Αέριο | C11: 600.00 € | D11: =Έξοδα[[#This Row],[Ετήσια ]]/12 -> 50.00 €
B12: Ύδρευση/Αποχέτευση | C12: 600.00 € | D12: =Έξοδα[[#This Row],[Ετήσια ]]/12 -> 50.00 €
B13: Απορρίμματα | C13: 150.00 € | D13: =Έξοδα[[#This Row],[Ετήσια ]]/12 -> 12.50 €
B14: Τηλέφωνο | C14: 600.00 € | D14: =Έξοδα[[#This Row],[Ετήσια ]]/12 -> 50.00 €
B15: Internet | C15: 600.00 € | D15: =Έξοδα[[#This Row],[Ετήσια ]]/12 -> 50.00 €
B16: Προγράμματα ασφάλισης ζωής/ αναπηρίας | C16: 1,500.00 € | D16: =Έξοδα[[#This Row],[Ετήσια ]]/12 -> 125.00 €
B17: Φαγητό | C17: 5,000.00 € | D17: =Έξοδα[[#This Row],[Ετήσια ]]/12 -> 416.67 €
B18: Ρούχα | C18: 1,200.00 € | D18: =Έξοδα[[#This Row],[Ετήσια ]]/12 -> 100.00 €
B19: Ιατρικά/Οδοντιατρικά/ Φάρμακα | C19: 600.00 € | D19: =Έξοδα[[#This Row],[Ετήσια ]]/12 -> 50.00 €
B20: Άλλα 1 | D20: =Έξοδα[[#This Row],[Ετήσια ]]/12 -> 0.00 €
B21: Άλλα 2 | D21: =Έξοδα[[#This Row],[Ετήσια ]]/12 -> 0.00 €
B22: Άθροισμα | C22: =SUBTOTAL(109,Έξοδα[[Ετήσια ]]) -> 49,000.00 € | D22: =SUBTOTAL(109,Έξοδα[[Μηνιαία ]]) -> 4,083.33 €

Sheet Διακριτικά
B1: ΠΡΟΣΩΠΙΚΗ ΤΑΜΕΙΑΚΗ ΡΟΗ | F1: ΟΔΗΓΌΣ | G1: ΕΞΟΔΑ | H1: ΔΙΑΚΡΙΤΙΚΆ | I1: ΑΠΟΤΑΜΙΕΥΣΕΙΣ
B2: Συνολικές ταμειακές ροές μέχρι σήμερα: | D2: =ΕτήσιαΤαμειακήΡοήΜέχριΣήμερα -> 39,750.00 € | F2: Αυτή είναι μια ετήσια εκτίμηση. Χρησιμοποιήστε αυτό το φύλλο εργασίας εάν θέλετε να προβάλετε ετήσια ποσά με εκτιμώμενες μηνιαίες τιμές Εάν θέλετε να προσθέσετε ημερήσια στοιχεία στους Πίνακες, υπολογίστε το μηνιαίο ποσό/αξία τους και τοποθετήστε την αξία στη στήλη Ετήσια.
B3: Διακριτικές δαπάνες | C3: Ετήσια | D3: Μηνιαία
B4: Εστιατόρια | C4: 1,200.00 € | D4: =Διακριτικά[[#This Row],[Ετήσια ]]/12 -> 100.00 €
B5: Δώρα | C5: 600.00 € | D5: =Διακριτικά[[#This Row],[Ετήσια ]]/12 -> 50.00 €
B6: Ταξίδια | C6: 2,250.00 € | D6: =Διακριτικά[[#This Row],[Ετήσια ]]/12 -> 187.50 €
B7: Διασκέδαση | C7: 1,200.00 € | D7: =Διακριτικά[[#This Row],[Ετήσια ]]/12 -> 100.00 €
B8: Προσωπική φροντίδα | C8: 300.00 € | D8: =Διακριτικά[[#This Row],[Ετήσια ]]/12 -> 25.00 €
B9: Αγορές | C9: 2,000.00 € | D9: =Διακριτικά[[#This Row],[Ετήσια ]]/12 -> 166.67 €
B10: Φιλανθρωπικές οργανώσεις | C10: 600.00 € | D10: =Διακριτικά[[#This Row],[Ετήσια ]]/12 -> 50.00 €
B11: Συμμετοχές σε λέσχες/ συλλόγους | C11: 300.00 € | D11: =Διακριτικά[[#This Row],[Ετήσια ]]/12 -> 25.00 €
B12: Εργασίες ανακαίνισης σπιτιού | C12: 4,800.00 € | D12: =Διακριτικά[[#This Row],[Ετήσια ]]/12 -> 400.00 €
B13: Άλλα 1 | D13: =Διακριτικά[[#This Row],[Ετήσια ]]/12 -> 0.00 €
B14: Άλλα 2 | D14: =Διακριτικά[[#This Row],[Ετήσια ]]/12 -> 0.00 €
B15: Άθροισμα | C15: =SUBTOTAL(109,Διακριτικά[[Ετήσια ]]) -> 13,250.00 € | D15: =SUBTOTAL(109,Διακριτικά[[Μηνιαία ]]) -> 1,104.17 €

Sheet Αποταμιεύσεις
B1: ΠΡΟΣΩΠΙΚΗ ΤΑΜΕΙΑΚΗ ΡΟΗ | F1: ΟΔΗΓΌΣ | G1: ΔΙΑΚΡΙΤΙΚΆ | H1: ΑΠΟΤΑΜΙΕΥΣΕΙΣ
B2: Συνολικές ταμειακές ροές μέχρι σήμερα: | D2: =ΕτήσιαΤαμειακήΡοήΜέχριΣήμερα -> 39,750.00 € | F2: Αυτή είναι μια ετήσια εκτίμηση. Χρησιμοποιήστε αυτό το φύλλο εργασίας εάν θέλετε να προβάλετε ετήσια ποσά με εκτιμώμενες μηνιαίες τιμές Εάν θέλετε να προσθέσετε ημερήσια στοιχεία στους Πίνακες, υπολογίστε το μηνιαίο ποσό/αξία τους και τοποθετήστε την αξία στη στήλη Ετήσια.
B3: Αποταμιεύσεις | C3: Ετήσια | D3: Μηνιαία
B4: Ταμειακά αποθέματα | C4: 5,000.00 € | D4: =Αποταμιεύσεις[[#This Row],[Ετήσια ]]/12 -> 416.67 €
B5: Συνταξιοδοτικό κ.λπ. | C5: 12,000.00 € | D5: =Αποταμιεύσεις[[#This Row],[Ετήσια ]]/12 -> 1,000.00 €
B6: Αποταμιεύσεις/ Επενδύσεις | C6: 6,000.00 € | D6: =Αποταμιεύσεις[[#This Row],[Ετήσια ]]/12 -> 500.00 €
B7: Άλλα 1 | D7: =Αποταμιεύσεις[[#This Row],[Ετήσια ]]/12 -> 0.00 €
B8: Άλλα 2 | D8: =Αποταμιεύσεις[[#This Row],[Ετήσια ]]/12 -> 0.00 €
B9: Άθροισμα | C9: =SUBTOTAL(109,Αποταμιεύσεις[[Ετήσια ]]) -> 23,000.00 € | D9: =SUBTOTAL(109,Αποταμιεύσεις[[Μηνιαία ]]) -> 1,916.67 €
